[Event "1st Serbian League 2022"]
[Site "Vrnjacka Banja"]
[Date "2022.09.28"]
[Round "9.27"]
[White "Jocev, Milan"]
[Black "Markus, Robert"]
[Result "1/2-1/2"]
[ECO "E68"]
[WhiteElo "2283"]
[BlackElo "2615"]
[Annotator "TA"]
[PlyCount "180"]
[EventDate "2022.09.20"]
[EventType "team-tourn"]
[EventCountry "SRB"]
[SourceTitle "playchess.com"]
[Source "ChessBase"]
[SourceQuality "1"]
[TimeControl "40/5400+30:1800+30"]

{[%evp 22,180,29,14,25,25,19,-15,0,-11,3,0,0,-2,0,-15,-12,-24,-9,-15,-8,-8,-7,-23,-11,-12,-18,-20,-10,-23,-23,-23,-15,-29,-35,-76,-76,-76,-76,-76,-16,-76,-76,-76,-76,-76,-76,-76,-22,-22,-22,-22,-22,-22,-22,-22,-22,-22,-22,-22,0,-22,-22,-22,-22,-22,-22,-22,-12,-12,0,-68,-7,-7,-7,-68,-68,-76,-76,-76,-76,-76,-76,-76,-76,-76,-76,-76,-76,-76,-76,-76,-76,-76,-76,-76,-68,-68,-44,-44,-44,-44,-44,-44,-36,-44,-44,-44,-44,-44,-20,-20,-20,-20,0,-44,-44,-44,-44,-44,0,0,0,-44,-44,-44,-44,-44,-36,-44,-44,-44,-44,-44,0,-44,-44,-44,-44,-44,-44,-44,-44,-44,0,0,0,0,0,0,0,0,0,-20,-20,-20,-20,0,-20,-21,-21]} 1. d4 {[%emt 0:00:02]} Nf6 {[%emt 0:00:10]} 2. c4 {[%emt 0:00:08]} d6 {[%emt 0:00:07]} 3. Nf3 {[%emt 0:00:20]} Nbd7 {[%emt 0:00:09]} 4. Nc3 {[%emt 0:00:32]} g6 {[%emt 0:00:57]} 5. g3 {[%emt 0:00:08]} Bg7 {[%emt 0:00:07]} 6. Bg2 {[%emt 0:00:05]} O-O {[%emt 0:00:09]} 7. O-O {[%emt 0:00:10]} e5 {[%emt 0:00:06]} 8. e4 {[%emt 0:00:36]} exd4 {[%emt 0:00:13]} 9. Nxd4 {[%emt 0:00:07]} Re8 {[%emt 0:00:06]} 10. Re1 {[%emt 0:01:51]} Nc5 $1 {[%emt 0:03:14] 10...Nc5 is better than 10...a6.} 11. h3 {[%emt 0:01:35]} h6 {[%emt 0:00:21]} 12. Nb3 {[%emt 0:11:12]} Ne6 {[%emt 0:01:58] E68: King's Indian: Fianchetto: 6...Nbd7 7 0-0 e5 8 e4.} 13. f4 {[%emt 0:05:00]} a5 {[%emt 0:00:13][%cal Ba7a5,Ba5a4][%mdl 32]} 14. Be3 {[%emt 0:06:30]} a4 {[%emt 0:11:40]} 15. Nd4 {[%emt 0:01:27] [#]} Nxd4 $146 {[%emt 0:12:17]} ({Predecessor:} 15... a3 16. b3 Nc5 17. Bf2 Bd7 18. Qc2 Qc8 19. Kh2 c6 20. Rad1 Qc7 21. Nf3 Na6 {0-1 (39) Barwinski,D (2250)-Grabarczyk,M (2435) Warsaw 1994}) 16. Bxd4 {[%emt 0:00:22]} c5 {[%emt 0:00:17]} 17. Bxf6 {[%emt 0:12:03]} Bxf6 {[%emt 0:04:09]} 18. e5 {[%emt 0:01:25]} dxe5 {[%emt 0:08:03]} 19. Qxd8 {[%emt 0:13:02]} Rxd8 {[%emt 0:02:09]} 20. fxe5 {[%emt 0:03:38]} Bg7 {[%emt 0:00:07]} 21. Nd5 {[%emt 0:01:25]} Be6 {[%emt 0:12:50]} 22. Rad1 {[%emt 0:04:47]} Rab8 {[%emt 0:05:50]} 23. b3 {[%emt 0:07:34]} axb3 {[%emt 0:11:54]} 24. axb3 {[%emt 0:00:07]} h5 {[%emt 0:01:45]} 25. Nf6+ {[%emt 0:14:30]} Bxf6 {[%emt 0:05:18]} 26. exf6 {[%emt 0:00:06]} Rxd1 {[%emt 0:01:14]} 27. Rxd1 $11 {[%emt 0:00:06][%mdl 4096] Endgame KRB-KRB} b5 {[%emt 0:00:07]} 28. cxb5 {[%emt 0:06:10]} Bxb3 {[%emt 0:04:42]} 29. Rd7 {[%emt 0:00:31]} Rxb5 {[%emt 0:02:08]} 30. Bd5 {[%emt 0:01:12]} Rb8 {[%emt 0:03:26]} (30... Rb6 $17 {aiming for ...Bxd5.} 31. Rb7 Rxb7 32. Bxb7 Be6) 31. Bxb3 {[%emt 0:01:38]} (31. g4 $1 $11) 31... Rxb3 {[%emt 0:00:08] KR-KR} 32. Kg2 {[%emt 0:01:30]} Rb2+ {[%emt 0:00:35]} 33. Kg1 {[%emt 0:00:25]} c4 {[%emt 0:02:34][%cal Bc5c4,Bc4c3,Bc3c2][%mdl 32] [#] Hoping for ...c3.} 34. Rc7 {[%emt 0:01:42]} Rc2 {[%emt 0:00:09]} (34... Rb6 $17) 35. h4 {[%emt 0:01:33]} c3 {[%emt 0:04:10]} 36. Kf1 {[%emt 0:01:10]} Rc1+ {[%emt 0:02:02]} 37. Kg2 {[%emt 0:00:09]} c2 {[%emt 0:00:20]} 38. Rc8+ {[%emt 0:01:10]} Kh7 {[%emt 0:00:06]} 39. Rc7 {[%emt 0:00:09]} (39. Kf2 Rh1 40. Ke2 c1=Q 41. Rxc1 Rxc1 42. Kf2 Rc3 43. Kg2 g5 44. Kh3 g4+ 45. Kh2 Kg6 46. Kg2 Rf3 47. Kg1 Kf5 48. Kh2 Ke4 49. Kg2 Ke3 50. Kg1 Rf2 51. Kh1 Kf3 52. Kg1 Kxg3 53. Kh1 Rf1#) 39... Kh6 {[%emt 0:00:28] [#] White must now prevent ...g5.} 40. Rc5 {[%emt 0:00:57] Prevents g5.} Kh7 {[%emt 0:01:17]} 41. Rc7 {[%emt 0:30:08]} Ra1 {[%emt 0:31:07]} 42. Rxc2 {[%emt 0:00:08]} Ra6 {[%emt 0:00:05]} 43. Rf2 {[%emt 0:00:20]} Kg8 {[%emt 0:00:06]} 44. Rf4 {[%emt 0:01:53]} Kf8 {[%emt 0:00:23]} 45. Rf2 {[%emt 0:01:50]} Ke8 {[%emt 0:00:11]} 46. Re2+ {[%emt 0:01:01]} (46. g4 $11) 46... Kd8 {[%emt 0:00:07]} ({Black should play} 46... Re6 $1 $15 47. Rf2 Kd7) 47. Rd2+ {[%emt 0:00:00]} Kc7 {[%emt 0:00:00]} 48. Rf2 {[%emt 0:00:00]} (48. g4 $11) 48... Kd7 $15 {[%emt 0:00:00]} 49. Rd2+ {[%emt 0:00:00]} Ke6 {[%emt 0:00:00]} 50. Rf2 {[%emt 0:00:00]} Ra5 {[%emt 0:00:00]} 51. Rf4 {[%emt 0:00:00]} Rf5 {[%emt 0:00:00]} 52. Ra4 {[%emt 0:00:00]} Kxf6 {[%emt 0:00:00]} 53. Ra6+ {[%emt 0:00:00]} Kg7 {[%emt 0:00:00]} 54. Rb6 {[%emt 0:00:00]} Re5 {[%emt 0:00:00]} 55. Ra6 {[%emt 0:00:00]} Re6 {[%emt 0:00:00]} 56. Ra5 {[%emt 0:00:00]} Kf6 {[%emt 0:00:00]} 57. Kf3 {[%emt 0:00:00]} Re5 {[%emt 0:00:00]} 58. Ra6+ {[%emt 0:00:00]} Kf5 {[%emt 0:00:00]} 59. Ra7 $1 {[%emt 0:00:00]} f6 {[%emt 0:00:00]} 60. Ra4 $1 {[%emt 0:00:00]} Rd5 {[%emt 0:00:00]} 61. Rf4+ {[%emt 0:00:00]} Ke6 {[%emt 0:00:00]} 62. Re4+ {[%emt 0:00:00]} Kd7 {[%emt 0:00:00]} 63. Ra4 {[%emt 0:00:00]} Kd6 {[%emt 0:00:00]} 64. Re4 {[%emt 0:00:00]} Rd3+ {[%emt 0:00:00]} 65. Kf2 {[%emt 0:00:00]} Kd5 {[%emt 0:00:00]} 66. Re8 {[%emt 0:00:00]} Rd4 {[%emt 0:00:00]} 67. Kf3 {[%emt 0:00:00]} Rg4 {[%emt 0:00:00]} 68. Rf8 {[%emt 0:00:00]} Ke5 {[%emt 0:00:00]} 69. Re8+ {[%emt 0:00:00]} Kf5 {[%emt 0:00:00]} 70. Ra8 {[%emt 0:00:00]} Re4 {[%emt 0:00:00]} 71. Ra5+ {[%emt 0:00:00]} Re5 {[%emt 0:00:00]} 72. Ra4 {[%emt 0:00:00]} Rc5 {[%emt 0:00:40]} 73. Rf4+ {[%emt 0:00:00]} Ke6 {[%emt 0:00:03]} 74. Re4+ {[%emt 0:00:00]} Kd7 {[%emt 0:00:05]} 75. Rd4+ {[%emt 0:00:00]} Ke7 {[%emt 0:00:44]} 76. Re4+ {[%emt 0:00:00]} Kd6 {[%emt 0:00:03]} 77. Rd4+ {[%emt 0:00:00]} Rd5 {[%emt 0:00:05]} 78. Ra4 {[%emt 0:00:00]} Rd3+ {[%emt 0:00:07]} 79. Kf4 {[%emt 0:00:00]} Rc3 {[%emt 0:00:44]} 80. Rd4+ {[%emt 0:00:00]} Ke6 {[%emt 0:01:01]} 81. Re4+ {[%emt 0:00:00]} Kd5 {[%emt 0:00:13][%cal Og6g5]} 82. Re8 {[%emt 0:00:00]} f5 {[%emt 0:01:59]} 83. Re5+ {[%emt 0:00:00] The position is equal.} Kd6 {[%emt 0:00:11] ( -> ...Rc4+)} 84. Ra5 {[%emt 0:00:00]} Rc4+ {[%emt 0:00:06]} 85. Kf3 {[%emt 0:20:36]} Rg4 {[%emt 0:00:35]} 86. Ra6+ {[%emt 0:00:00]} Ke5 {[%emt 0:00:19]} 87. Ra5+ {[%emt 0:00:00]} Kf6 {[%emt 0:00:04]} 88. Ra6+ {[%emt 0:00:00]} Kg7 {[%emt 0:00:02]} 89. Ra7+ {[%emt 0:00:00]} Kh6 {[%emt 0:00:04]} 90. Ra6 {[%emt 0:00:00]} Re4 {[%emt 0:00:48] Weighted Error Value: White=0.10 (very precise) /Black=0.08 (flawless)} 1/2-1/2

[Event "1st Serbian League 2022"]
[Site "Vrnjacka Banja"]
[Date "2022.09.28"]
[Round "9.28"]
[White "Kovacevic, Aleksandar"]
[Black "Radojicic, Aleksandar M"]
[Result "1-0"]
[ECO "A43"]
[WhiteElo "2471"]
[BlackElo "2192"]
[Annotator "TA"]
[PlyCount "61"]
[EventDate "2022.09.20"]
[EventType "team-tourn"]
[EventCountry "SRB"]
[SourceTitle "playchess.com"]
[Source "ChessBase"]
[SourceQuality "1"]
[TimeControl "40/5400+30:1800+30"]

{[%evp 9,61,20,32,19,23,15,17,25,35,10,99,-55,-45,-51,-3,-97,-6,-8,-17,-18,0,0,0,-52,37,29,154,169,194,137,181,77,361,81,67,0,0,0,72,70,69,71,652,645,646,655,652,638,700,758,751,751,708,715]} 1. d4 {[%emt 0:00:15][%cal Bd2d4,Bd4d5,Bd5d6][%mdl 32]} Nf6 {[%emt 0:00:29]} 2. Nf3 {[%emt 0:00:09]} c5 {[%emt 0:00:15]} 3. d5 {[%emt 0:00:13]} b5 {[%emt 0:02:56]} 4. Bg5 {[%emt 0:00:11]} g6 {[%emt 0:00:12]} 5. d6 {[%emt 0:00:53]} Bb7 {[%emt 0:55:40]} 6. Nc3 {[%emt 0:02:18] A43: Schmid Benoni.} a6 {[%emt 0:02:37] [#]} 7. Bxf6 $146 {[%emt 0:27:15]} ({Predecessor:} 7. Qd2 Bg7 8. Qe3 c4 9. g3 e6 10. Bg2 Nc6 11. O-O Nb4 12. Qd2 h6 13. Be3 {1-0 (52) Lye,L (2358)-Tan,J (2151) Tornelo INT 2021}) 7... exf6 {[%emt 0:00:42]} 8. Qd2 {[%emt 0:00:13] The position is equal.} Qb6 {[%emt 0:06:15]} 9. Rd1 {[%emt 0:00:59]} h5 {[%emt 0:04:27]} (9... c4 $1 $11) 10. Qf4 $2 {[%emt 0:09:58] White is more active.} (10. Qe3+ $1 $16 Kd8 11. Ne4 Bxe4 12. Qxe4) 10... Bh6 $1 $15 {[%emt 0:01:12]} 11. Qxf6 {[%emt 0:00:54][%csl Gd6][%cal Rf6e7]} O-O {[%emt 0:00:09]} 12. Ne5 {[%emt 0:18:40]} (12. e3 $11 {remains equal.}) 12... Qa5 {[%emt 0:12:11]} (12... Bg7 $17 13. Qe7 Qa5) 13. Nxg6 $11 {[%emt 0:12:49]} fxg6 {[%emt 0:01:18]} 14. Qxg6+ {[%emt 0:00:06]} Bg7 {[%emt 0:00:06] Hoping for ...Qb4. A strong pair of Bishops.} 15. e3 $1 {[%emt 0:00:23] And now Bd3 would win.} Rf6 {[%emt 0:07:50]} 16. Qxh5 {[%emt 0:03:30]} (16. Qe8+ $11 Rf8 17. Qg6) 16... Qb4 {[%emt 0:01:02]} ({Black should play} 16... Nc6 $15 17. Bd3 Rh6 18. Qxc5 Qb4 19. Qxb4 Nxb4) 17. Bd3 $14 {[%emt 0:00:54]} Nc6 {[%emt 0:01:05]} (17... Rh6 $1 $11 18. Qe8+ Bf8) 18. Bh7+ $1 $16 {[%emt 0:03:45]} (18. a3 Qxb2 19. Bh7+ Kh8 20. Bg6+ Kg8 $11) 18... Kh8 {[%emt 0:00:27]} 19. Bg6+ {[%emt 0:00:21]} Kg8 {[%emt 0:00:02][%cal Of6g6] [#]} 20. a3 {[%emt 0:05:53]} (20. f4 $1 $18 {is the precise move to win. Black must now prevent 0-0.} Na5 21. O-O) 20... Qa5 $2 {[%emt 0:00:45][%mdl 8192]} (20... Qxb2 $16 21. Ne4 Rxg6 22. Qxg6 Ne5 23. Nf6+ Kf8 24. Nh7+ Kg8 25. Nf6+ Kf8 26. Nh7+ Kg8 27. Nf6+) 21. O-O $2 {[%emt 0:00:17]} ({And not} 21. b4 Nxb4 22. O-O (22. axb4 Qxb4 23. O-O Qxc3 $17) 22... Qxa3 $11) (21. Rd5 $18 {has better winning chances.} Nd4 22. Kd1 (22. Rxc5 Ne6 $18) 22... Rxg6 23. Qxg6) 21... Ne5 {[%emt 0:00:20]} 22. Bh7+ {[%emt 0:05:19]} ({White should try} 22. Qh7+ $14 Kf8 23. Be4 Bxe4 24. Nxe4) 22... Kh8 $11 {[%emt 0:00:04] Strongly threatening ...Rh6.} 23. Bg6+ {[%emt 0:00:20]} (23. b4 $11 cxb4 24. Bg6+ Kg8 25. Bh7+ Kh8 26. Bg6+ Kg8 27. Bh7+ Kh8) 23... Kg8 $16 {[%emt 0:00:02] [#]} 24. Qh7+ {[%emt 0:00:28]} Kf8 {[%emt 0:00:01]} 25. Be4 $36 {[%emt 0:00:05][%mdl 2048] White has strong initiative. Chess con chili.} Qb6 {[%emt 0:01:17][%mdl 8192]} (25... Bxe4 $16 26. Nxe4 Rh6 27. Qf5+ Kg8) 26. Nd5 $18 {[%emt 0:00:33] White is clearly winning.} Bxd5 {[%emt 0:01:16]} 27. Bxd5 {[%emt 0:00:02][%csl Gd5][%cal Rh7g8]} ({Less strong is} 27. Rxd5 Re8 $14) 27... Nf7 {[%emt 0:00:40]} 28. Bxa8 {[%emt 0:00:14]} Qd8 {[%emt 0:00:04]} 29. Bd5 {[%emt 0:00:33]} Rh6 {[%emt 0:00:37]} 30. Qf5 {[%emt 0:00:08][%csl Gd5][%cal Rf5f7]} Rf6 {[%emt 0:00:01]} 31. Qh5 {[%emt 0:00:21] Weighted Error Value: White=0.45/Black=0.59} 1-0

[Event "1st Serbian League 2022"]
[Site "Vrnjacka Banja"]
[Date "2022.09.28"]
[Round "9.29"]
[White "Velikic, Adela"]
[Black "Brenjo, Slavisa"]
[Result "1-0"]
[ECO "D30"]
[WhiteElo "2272"]
[BlackElo "2409"]
[Annotator "TA"]
[PlyCount "85"]
[EventDate "2022.09.20"]
[EventType "team-tourn"]
[EventCountry "SRB"]
[SourceTitle "playchess.com"]
[Source "ChessBase"]
[SourceQuality "1"]
[TimeControl "40/5400+30:1800+30"]

{[%evp 23,85,43,60,68,88,92,90,93,92,88,122,78,86,70,70,76,64,63,84,71,79,91,83,86,83,83,98,97,118,114,121,121,129,101,124,135,154,150,183,170,193,157,330,316,404,404,425,430,564,567,633,673,672,640,935,933,941,931,935,934,926,906,943,927]} 1. d4 {[%emt 0:00:06]} d5 {[%emt 0:00:38]} 2. c4 {[%emt 0:00:08]} e6 {[%emt 0:00:09]} 3. Nf3 {[%emt 0:00:10]} c5 {[%emt 0:00:47]} 4. cxd5 {[%emt 0:00:12]} exd5 {[%emt 0:00:08]} 5. g3 {[%emt 0:00:13]} Nc6 {[%emt 0:00:07]} 6. Bg2 {[%emt 0:00:13]} Nf6 {[%emt 0:00:08]} 7. O-O {[%emt 0:00:17]} Be7 {[%emt 0:00:06][%cal Bf8e7,Be7c5,Bc5b6][%mdl 32]} 8. dxc5 {[%emt 0:00:12]} Bxc5 {[%emt 0:00:51]} 9. a3 {[%emt 0:00:18]} O-O {[%emt 0:00:41]} 10. b4 {[%emt 0:00:16]} Bb6 {[%emt 0:00:54]} 11. Nc3 {[%emt 0:00:22]} Re8 {[%emt 0:01:03]} 12. Bb2 {[%emt 0:01:08]} Bg4 {[%emt 0:05:31]} 13. Na4 {[%emt 0:06:38] D30: Queen's Gambit Declined: Systems without Nc3.} Qe7 {[%emt 0:10:15]} 14. Nxb6 {[%emt 0:05:56]} axb6 {[%emt 0:00:11]} 15. Re1 {[%emt 0:01:27] White is better.} Rad8 {[%emt 0:02:19]} 16. Rc1 {[%emt 0:11:23]} Bxf3 {[%emt 0:13:56]} 17. Bxf3 {[%emt 0:04:20]} Ne5 {[%emt 0:01:53] [#]} 18. Bxe5 $146 {[%emt 0:07:28]} ({Predecessor:} 18. Bg2 Nc4 19. Bxf6 Qxf6 20. Bxd5 Ne5 21. Qb3 Qe7 22. Rc2 Rd7 23. Rec1 Red8 24. Rc8 {1-0 (46) Krumina,L (2086)-Barak,G (1993) Pardubice 2018}) 18... Qxe5 {[%emt 0:01:51]} 19. Qd3 {[%emt 0:04:45]} h5 {[%emt 0:01:56]} 20. Red1 {[%emt 0:14:20]} Re6 {[%emt 0:20:15]} 21. Qc3 {[%emt 0:06:15]} Qxc3 {[%emt 0:05:20]} 22. Rxc3 {[%emt 0:00:08]} Kf8 {[%emt 0:00:24]} 23. Rcd3 {[%emt 0:09:00]} Re5 {[%emt 0:03:37]} 24. Kf1 {[%emt 0:10:03]} g6 {[%emt 0:02:36]} 25. Bg2 {[%emt 0:04:05]} g5 {[%emt 0:08:30]} 26. e4 {[%emt 0:02:13]} g4 {[%emt 0:01:39]} 27. exd5 {[%emt 0:01:31]} Rd6 {[%emt 0:00:23]} 28. Re3 {[%emt 0:06:35]} Rxe3 {[%emt 0:00:42]} 29. fxe3 $16 {[%emt 0:00:04][%mdl 4096] Endgame KRB-KRN} Ke7 {[%emt 0:02:21]} 30. Ke2 {[%emt 0:00:34]} Nd7 {[%emt 0:02:18]} 31. Rc1 {[%emt 0:01:48]} Kd8 {[%emt 0:02:27]} 32. Rf1 {[%emt 0:01:21]} Ne5 {[%emt 0:05:48] [#] This costs Black the game.} (32... Ke7 $16 33. Kd3 h4) 33. Rf5 $18 {[%emt 0:00:58][%csl LRe5,LRh5]} f6 {[%emt 0:00:33]} 34. a4 {[%emt 0:01:09]} Ke7 {[%emt 0:04:55]} 35. Rxh5 {[%emt 0:00:23] White is clearly winning.} Rd8 {[%emt 0:01:09]} 36. Rh7+ {[%emt 0:00:32]} Kd6 {[%emt 0:00:25]} 37. Rxb7 {[%emt 0:01:04]} Nd7 {[%emt 0:00:32]} 38. Be4 {[%emt 0:01:19]} Ra8 {[%emt 0:00:24]} 39. Bf5 {[%emt 0:00:23][%csl LRd7,LRg4]} Ne5 {[%emt 0:00:09]} 40. Rxb6+ {[%emt 0:00:38]} Kxd5 {[%emt 0:01:08]} 41. a5 {[%emt 0:30:31][%cal Ba4a5,Ba5a6][%mdl 32]} Rh8 {[%emt 0:30:29]} 42. a6 {[%emt 0:00:00]} Rxh2+ {[%emt 0:00:00]} 43. Kd1 {[%emt 0:00:00] Weighted Error Value: White=0.06 (flawless) /Black=0.29 (precise)} 1-0

[Event "1st Serbian League 2022"]
[Site "Vrnjacka Banja"]
[Date "2022.09.28"]
[Round "9.30"]
[White "Omorjan, Dejan"]
[Black "Grbic, Milorad"]
[Result "1-0"]
[ECO "A53"]
[WhiteElo "2265"]
[BlackElo "2259"]
[Annotator "TA"]
[PlyCount "87"]
[EventDate "2022.09.20"]
[EventType "team-tourn"]
[EventCountry "SRB"]
[SourceTitle "playchess.com"]
[Source "ChessBase"]
[SourceQuality "1"]
[TimeControl "40/5400+30:1800+30"]

{[%evp 15,87,21,27,10,20,13,77,85,124,118,133,124,141,132,143,106,143,109,146,146,146,146,154,125,145,134,163,163,165,164,175,162,161,144,158,155,160,131,133,131,144,116,118,113,133,125,153,140,174,148,216,179,315,308,525,497,625,609,547,323,1294,530,689,589,669,535,536,527,670,595,597,597,771,587]} 1. d4 {[%emt 0:00:04]} d6 {[%emt 0:00:28]} 2. Nf3 {[%emt 0:01:01]} Nf6 {[%emt 0:01:57]} 3. c4 {[%emt 0:01:04]} Bg4 {[%emt 0:02:50]} 4. Nc3 {[%emt 0:01:51]} Nbd7 {[%emt 0:03:54]} 5. e3 {[%emt 0:02:14]} e5 {[%emt 0:03:51]} 6. Be2 {[%emt 0:02:05]} c6 {[%emt 0:02:46]} 7. O-O {[%emt 0:03:08]} Be7 {[%emt 0:01:29]} 8. b3 {[%emt 0:05:48]} O-O {[%emt 0:00:53]} 9. e4 {[%emt 0:13:28] A53: Old Indian Defence without Nf3.} Re8 {[%emt 0:01:42] [#]} 10. d5 $146 {[%emt 0:08:51]} ({Predecessor:} 10. Be3 a6 11. Qc2 Qc7 12. Rac1 Rac8 13. Rfd1 b5 14. cxb5 cxb5 15. Qb1 Qb7 16. d5 {0-1 (29) Burnett,J (2209)-Simons,M (2215) Scarborough 2001}) 10... c5 {[%emt 0:07:41]} (10... cxd5 $11 {remains equal.} 11. exd5 Bf5) 11. h3 $16 {[%emt 0:04:14] White is better.} Bxf3 {[%emt 0:00:12]} 12. Bxf3 {[%emt 0:00:24]} h6 {[%emt 0:00:43]} 13. g3 {[%emt 0:01:40]} Nh7 {[%emt 0:07:41]} 14. Bg2 {[%emt 0:01:34]} Bf6 {[%emt 0:07:32]} 15. Qd3 {[%emt 0:03:58]} Nhf8 {[%emt 0:01:35]} 16. Nd1 {[%emt 0:03:28]} h5 {[%emt 0:02:41]} 17. h4 {[%emt 0:02:35]} a6 {[%emt 0:05:18]} 18. Bd2 {[%emt 0:02:27]} g6 {[%emt 0:06:00]} 19. Bc3 {[%emt 0:04:42]} a5 {[%emt 0:10:55]} 20. Bd2 {[%emt 0:04:29]} Qe7 {[%emt 0:05:16]} 21. Nc3 {[%emt 0:00:46]} Nb8 {[%emt 0:01:15]} 22. Na4 {[%emt 0:06:08]} Qd8 {[%emt 0:03:16]} 23. Bc3 {[%emt 0:01:35]} Nfd7 {[%emt 0:01:20]} 24. Qd2 {[%emt 0:03:06]} b6 {[%emt 0:02:25]} 25. Bh3 {[%emt 0:01:41]} Ra7 {[%emt 0:01:07]} 26. Rae1 {[%emt 0:06:10] White has more active pieces.} Rb7 {[%emt 0:02:57]} 27. Kh2 {[%emt 0:03:19]} Bg7 {[%emt 0:01:28]} 28. Nb2 {[%emt 0:03:14]} Nf6 {[%emt 0:00:42]} 29. f3 {[%emt 0:01:31]} Kh7 {[%emt 0:02:07]} 30. Re2 {[%emt 0:01:30]} Nbd7 {[%emt 0:00:16]} 31. Qe1 {[%emt 0:01:22]} Ng8 {[%emt 0:00:37]} 32. Nd3 {[%emt 0:01:20]} Nh6 {[%emt 0:00:29]} (32... Ngf6 $16 {is a better defense.} 33. g4 Rf8) 33. Bd2 {[%emt 0:02:31]} Rf8 {[%emt 0:01:27] [#]} (33... Bf6 $142 34. Kg1 Ng8) 34. g4 $1 $18 {[%emt 0:01:44]} f6 $2 {[%emt 0:04:17]} (34... Qe8 {keeps fighting.} 35. gxh5 Nf6 36. hxg6+ fxg6) 35. gxh5 {[%emt 0:00:44]} gxh5 {[%emt 0:00:05]} 36. Rg2 {[%emt 0:00:39]} f5 {[%emt 0:01:49]} 37. Bg5 {[%emt 0:00:40]} Bf6 {[%emt 0:00:14]} (37... Nf6 38. exf5 Nhg8) 38. exf5 {[%emt 0:00:28]} (38. Bxh6 $142 Kxh6 39. Bxf5 Bxh4 40. Rg6+ Kh7 41. Qd2) 38... Qe7 {[%emt 0:01:33]} 39. Nf2 {[%emt 0:00:32] [#] And now Bxh6 would win.} Bxg5 {[%emt 0:00:28]} 40. Rxg5 {[%emt 0:00:30]} Nf6 {[%emt 0:00:58]} 41. Ne4 {[%emt 0:03:55]} Nhg8 {[%emt 0:00:10]} 42. a4 {[%emt 0:07:05]} Rf7 {[%emt 0:01:37]} 43. Rfg1 {[%emt 0:01:18]} Qf8 {[%emt 0:00:39]} 44. Qe3 {[%emt 0:04:17] White took control after the opening.  Weighted Error Value: White=0.44/Black=0.48} 1-0

[Event "1st Serbian League 2022"]
[Site "Vrnjacka Banja"]
[Date "2022.09.28"]
[Round "9.31"]
[White "Ioannidis, Evgenios"]
[Black "Krstulovic, Alex"]
[Result "1/2-1/2"]
[ECO "A16"]
[WhiteElo "2486"]
[BlackElo "2411"]
[Annotator "TA"]
[PlyCount "89"]
[EventDate "2022.09.20"]
[EventType "team-tourn"]
[EventCountry "SRB"]
[SourceTitle "playchess.com"]
[Source "ChessBase"]
[SourceQuality "1"]
[TimeControl "40/5400+30:1800+30"]

{[%evp 9,89,47,31,13,23,32,9,-19,0,0,7,-7,0,0,0,-10,-10,-14,-8,-15,-26,-29,-22,-20,0,0,0,0,9,-4,5,15,14,14,14,10,15,17,16,16,18,17,23,24,24,24,20,6,32,0,0,0,0,0,0,0,0,0,0,0,64,64,81,0,37,37,175,82,77,41,96,44,142,50,56,17,41,0,0,0,0,0]} 1. c4 {[%emt 0:00:07]} Nf6 {[%emt 0:00:09]} 2. Nc3 {[%emt 0:00:17]} g6 {[%emt 0:00:08]} 3. e4 {[%emt 0:00:21]} e5 {[%emt 0:00:08]} 4. Nf3 {[%emt 0:00:25]} Bg7 {[%emt 0:00:15]} 5. Nxe5 {[%emt 0:00:41]} O-O {[%emt 0:00:09]} 6. Bd3 {[%emt 0:00:47] A16: English Opening: 1...Nf6 with ...d5.} Re8 {[%emt 0:06:06]} 7. Nf3 {[%emt 0:00:07]} Nxe4 {[%emt 0:02:01] [#]} 8. O-O $146 {[%emt 0:00:05]} ({Predecessor:} 8. Bxe4 Bxc3 9. dxc3 Rxe4+ 10. Be3 Nc6 11. O-O d6 12. Qd5 Qe8 13. h3 Bf5 14. Rfe1 {1-0 (60) Giri,A (2761)-Jones,G (2669) chess24.com INT 2022}) 8... Nxc3 {[%emt 0:12:40]} 9. dxc3 {[%emt 0:00:07]} d6 {[%emt 0:00:08]} 10. h3 {[%emt 0:07:59]} (10. Bg5 $5 {[%cal Rg5d8]} f6 11. Be3 $11) 10... Nc6 {[%emt 0:04:58]} 11. Bg5 {[%emt 0:07:29]} Bf6 {[%emt 0:02:07]} 12. Be3 {[%emt 0:04:32]} b6 {[%emt 0:11:04]} 13. Re1 {[%emt 0:06:04]} Bb7 {[%emt 0:02:09]} 14. Bf1 {[%emt 0:01:43]} Ne5 {[%emt 0:04:25]} 15. Nxe5 {[%emt 0:03:51]} Bxe5 {[%emt 0:10:50]} 16. Qd2 {[%emt 0:00:13]} Qd7 {[%emt 0:04:45]} 17. c5 {[%emt 0:00:21]} Qc6 {[%emt 0:01:35]} 18. cxd6 {[%emt 0:08:30]} Qxd6 {[%emt 0:00:50]} 19. Bb5 {[%emt 0:05:25]} Qxd2 {[%emt 0:02:00]} (19... Bh2+ {feels hotter.} 20. Kh1 Qxd2 21. Bxd2 Rxe1+ 22. Rxe1 Bd6) 20. Bxd2 {[%emt 0:00:17]} c6 {[%emt 0:01:47]} 21. Bc4 {[%emt 0:00:17]} Kg7 {[%emt 0:00:45]} 22. a4 {[%emt 0:01:17][%cal Ba2a4,Ba4a5][%mdl 32]} Re7 {[%emt 0:17:17]} 23. a5 {[%emt 0:04:35]} Rae8 {[%emt 0:00:57]} 24. Kf1 {[%emt 0:02:21]} Bc7 {[%emt 0:04:39]} 25. Be3 {[%emt 0:00:08]} f6 {[%emt 0:04:35]} 26. b4 {[%emt 0:05:30]} Bc8 {[%emt 0:02:40]} 27. axb6 {[%emt 0:01:20]} Bxb6 {[%emt 0:00:47]} 28. Re2 {[%emt 0:03:42]} Bxe3 {[%emt 0:01:27]} 29. Rxe3 {[%emt 0:01:44]} (29. fxe3 {looks sharper.} Kh6 30. Kf2 f5 31. Ra5) 29... Rxe3 {[%emt 0:00:05]} 30. fxe3 {[%emt 0:00:05]} Rxe3 {[%emt 0:00:04]} 31. Rxa7+ $11 {[%emt 0:00:04][%mdl 4096] Endgame KRB-KRB} Kh6 {[%emt 0:00:15]} 32. Ra3 {[%emt 0:04:59]} f5 $1 {[%emt 0:01:09]} 33. Kf2 {[%emt 0:00:40]} f4 {[%emt 0:00:05]} 34. Be2 {[%emt 0:00:05]} Bd7 {[%emt 0:03:44]} (34... Bf5 $11) 35. Bf3 $1 $14 {[%emt 0:00:49]} Rd3 {[%emt 0:00:40] [#]} 36. Ra7 {[%emt 0:01:13]} (36. h4 $1 $16) 36... Be6 {[%emt 0:00:35]} 37. Rc7 {[%emt 0:00:05]} Bd7 {[%emt 0:00:30]} (37... Bd5 $1 $14) 38. c4 {[%emt 0:01:58]} ({Much less strong is} 38. Bxc6 $6 Rxc3 39. Rxd7 Rxc6 $14) (38. Be4 $18 Re3 39. Rxd7 Rxe4 40. Rd4) 38... Rd4 $16 {[%emt 0:00:30]} 39. Be2 {[%emt 0:03:08] White is more active.} Rd6 {[%emt 0:00:30]} (39... Kg5 $1 $14) 40. h4 {[%emt 0:08:47]} (40. b5 $16 cxb5 41. cxb5) 40... g5 {[%emt 0:00:31]} (40... Bf5 $1 $14) 41. hxg5+ {[%emt 0:31:55]} (41. c5 $16 Rd2 42. Ke1) 41... Kxg5 $14 {[%emt 0:00:59]} 42. b5 {[%emt 0:00:00]} (42. Bf3 $5 {[%cal Rb4b5]}) 42... cxb5 {[%emt 0:08:15]} 43. c5 {[%emt 0:00:00]} (43. cxb5 $5 {[%cal Rb5b6]} Bf5 44. Rc5 $11) 43... Rd5 {[%emt 0:08:02]} 44. c6 {[%emt 0:00:00]} Bf5 {[%emt 0:00:12]} 45. Rb7 {[%emt 0:00:00] Weighted Error Value: White=0.15 (very precise) /Black=0.14 (very precise)} 1/2-1/2